[Event "Swiss National League-A 2024"]
[Site "Luzern"]
[Date "2024.10.12"]
[Round "8.11"]
[White "Bauer, Christian"]
[Black "Kurmann, Oliver"]
[Result "1-0"]
[ECO "B33"]
[WhiteElo "2557"]
[BlackElo "2413"]
[Annotator "TA"]
[PlyCount "99"]
[EventDate "2023.10.03"]
[EventType "team-tourn"]
[EventCountry "SUI"]
[SourceTitle "playchess.com"]
[Source "ChessBase"]
[SourceQuality "1"]
[TimeControl "40/8400+30:20/3000+30:900+30"]

{[%evp 28,99,39,-23,-39,-31,-35,-29,19,-21,-2,-27,-29,-59,2,0,31,33,54,54,99,105,116,70,83,80,82,75,128,112,105,97,130,95,155,148,253,229,210,166,177,172,172,176,162,105,110,90,84,89,137,76,162,153,124,124,167,181,173,160,229,228,272,280,279,272,623,258,606,310,578,310,284,265]} 1. Nc3 {[%emt 0:40:11]} c5 {[%emt 0:41:50]} 2. Nf3 {[%emt 0:00:09]} Nc6 {[%emt 0:01:52]} 3. d4 {[%emt 0:00:06]} cxd4 {[%emt 0:00:08]} 4. Nxd4 {[%emt 0:00:08]} Nf6 {[%emt 0:01:15]} 5. e4 {[%emt 0:03:48]} e6 {[%emt 0:00:57]} 6. Ndb5 {[%emt 0:02:30]} d6 {[%emt 0:00:51]} 7. Bf4 {[%emt 0:00:50]} e5 {[%emt 0:00:08]} 8. Bg5 {[%emt 0:00:06]} a6 {[%emt 0:00:10]} 9. Na3 {[%emt 0:00:07]} b5 {[%emt 0:00:07]} 10. Bxf6 {[%emt 0:01:33]} gxf6 {[%emt 0:00:14]} 11. Nd5 {[%emt 0:01:29]} f5 {[%emt 0:00:03]} 12. c3 {[%emt 0:01:15]} Bg7 {[%emt 0:02:18]} 13. Bd3 {[%emt 0:02:05]} Be6 {[%emt 0:04:42]} 14. Qh5 {[%emt 0:04:15]} O-O {[%emt 0:03:34]} 15. Ne3 {[%emt 0:10:18] Excellent horsemanship.} (15. exf5 $14 Bxd5 16. f6) 15... f4 $11 {[%emt 0:03:26]} 16. Nf5 {[%emt 0:00:05]} Qf6 {[%emt 0:27:15]} 17. g4 {[%emt 0:26:34]} h6 {[%emt 0:05:21]} (17... Rfb8 {feels stronger.}) 18. Rg1 {[%emt 0:05:22]} Qg5 {[%emt 0:07:08]} 19. O-O-O {[%emt 0:02:19]} Rfd8 {[%emt 0:01:06]} 20. Kb1 {[%emt 0:13:30]} Kf8 {[%emt 0:02:00]} (20... b4 $15 21. Nc4 bxc3 22. bxc3 Bf8) 21. Qh3 $1 {[%emt 0:07:06]} d5 {[%emt 0:02:08]} 22. Nc2 {[%emt 0:03:43]} Qf6 {[%emt 0:27:01]} 23. Qf3 {[%emt 0:05:22]} Bxf5 {[%emt 0:00:21]} 24. gxf5 {[%emt 0:00:09]} d4 {[%emt 0:00:01]} 25. c4 {[%emt 0:06:15]} (25. cxd4 $16 Nxd4 26. Nxd4 Rxd4 27. Bc2 Rxd1+ 28. Bxd1) 25... Rab8 $14 {[%emt 0:00:37]} 26. cxb5 {[%emt 0:00:47]} axb5 {[%emt 0:00:50]} 27. Rc1 {[%emt 0:00:33][%cal Bd1c1,Bc1c5,Bc5d5][%mdl 32]} Rb7 {[%emt 0:05:18]} (27... b4 $142) 28. Na3 {[%emt 0:01:41]} Na7 {[%emt 0:00:02] Black is weak on the light squares} 29. Rc5 {[%emt 0:04:43][%cal Ra3b5]} Rdb8 {[%emt 0:00:01]} 30. Qg4 {[%emt 0:03:02]} Kg8 {[%emt 0:03:09]} (30... Qg5 $142) 31. Rd5 {[%emt 0:01:16]} Rb6 {[%emt 0:01:45] Prevents Rd6.} (31... Qg5 $16 32. Qxg5 hxg5) 32. Nc2 {[%emt 0:01:30]} Qg5 {[%emt 0:08:00]} 33. Qxg5 {[%emt 0:01:35]} hxg5 {[%emt 0:00:01]} 34. Rxg5 {[%emt 0:00:08][%cal Od5d7] aiming for Rd7!} Kf8 {[%emt 0:00:58]} 35. Nb4 {[%emt 0:00:27]} Bf6 {[%emt 0:00:15][%cal Bg7f6,Bf6e7,Be7b4,Bb4d6][%mdl 32]} 36. Rg1 {[%emt 0:01:51]} ({Better is} 36. Rh5 $18 {Hoping for Rc5.} Kg8 37. a3) 36... Be7 $16 {[%emt 0:00:00] Dodges Rc5} 37. Rd7 {[%emt 0:01:09]} Bxb4 {[%emt 0:00:31]} 38. Rxa7 {[%emt 0:00:01] White is much more active.} Rh6 {[%emt 0:00:37]} (38... Be7 $142) 39. Bc2 {[%emt 0:01:01]} ({White should try} 39. Rc1 $1) 39... Rxh2 {[%emt 0:03:22]} (39... Bc5 $16 {might work better.} 40. Rd7 (40. Rc7 Bb6 $11) 40... d3) 40. Bb3 $36 {[%emt 0:00:05][%mdl 2048] Keeping Black busy.} Rh7 {[%emt 0:00:12] [#]} 41. Rc1 {[%emt 0:12:33] Inhibits Bc5.} d3 {[%emt 0:14:24] [#]} 42. a3 $1 {[%emt 0:01:07]} Bd6 {[%emt 0:16:30]} 43. Rd7 {[%emt 0:06:22]} d2 {[%emt 0:00:59]} (43... Be7 $16) 44. Rd1 {[%emt 0:03:43]} (44. Rxd6 $2 {perishes.} dxc1=B (44... dxc1=R+ $2 45. Kxc1 Rh1+ 46. Kd2 $19) 45. Kxc1 Rh1+ 46. Rd1 Rxd1+ 47. Kxd1 Ke7 $19) 44... Bc5 {[%emt 0:00:11]} 45. R1xd2 {[%emt 0:00:27]} ({Less strong is} 45. R7xd2 Bd4 $16) 45... Rb6 {[%emt 0:14:56]} 46. Rc2 {[%emt 0:04:06]} Bd4 {[%emt 0:00:35]} (46... Rd6) 47. Rc8+ {[%emt 0:03:15]} Kg7 {[%emt 0:00:06]} 48. Rxf7+ {[%emt 0:01:36]} Kh6 {[%emt 0:00:01]} 49. Rxh7+ {[%emt 0:00:37]} Kxh7 {[%emt 0:00:01]} 50. Rc7+ {[%emt 0:00:35] Weighted Error Value: White=0.23 (precise) /Black=0.35.  Mistake:       	White=3     	Black=9      Inaccurate:     	White=2     	Black=6      OK:         	White=12    	Black=8      Best:        	White=3     	Black=2      Strong:       	White=2     	---} 1-0

[Event "Swiss National League-A 2024"]
[Site "Luzern"]
[Date "2024.10.12"]
[Round "8.12"]
[White "Atlas, Valery"]
[Black "Fecker, Noah"]
[Result "1/2-1/2"]
[ECO "B15"]
[WhiteElo "2394"]
[BlackElo "2338"]
[Annotator "TA"]
[PlyCount "41"]
[EventDate "2023.10.03"]
[EventType "team-tourn"]
[EventCountry "SUI"]
[SourceTitle "playchess.com"]
[Source "ChessBase"]
[SourceQuality "1"]
[TimeControl "40/8400+30:20/3000+30:900+30"]

{[%evp 12,41,23,5,7,-6,17,13,0,0,12,-22,0,-7,-12,-30,0,-2,0,0,0,0,-7,-8,0,-9,-8,-8,0,0,0,-6]} 1. e4 {[%emt 0:40:04]} c6 {[%emt 0:40:08]} 2. Nf3 {[%emt 0:00:07]} d5 {[%emt 0:00:06]} 3. Nc3 {[%emt 0:00:06]} dxe4 {[%emt 0:00:32]} 4. Nxe4 {[%emt 0:00:09]} Nf6 {[%emt 0:00:59]} 5. Nxf6+ {[%emt 0:01:28]} exf6 {[%emt 0:00:19]} 6. d4 {[%emt 0:00:33]} Bd6 {[%emt 0:01:42]} 7. Be3 {[%emt 0:02:00]} O-O {[%emt 0:01:37]} 8. Qd2 {[%emt 0:01:20]} Be6 {[%emt 0:04:35]} 9. Be2 {[%emt 0:05:37]} Re8 {[%emt 0:06:01]} 10. O-O {[%emt 0:01:14]} Na6 {[%emt 0:08:53][%cal Bb8a6,Ba6c7,Bc7d5,Bd5f4][%mdl 32]} 11. Bf4 {[%emt 0:11:46]} Nc7 {[%emt 0:02:24]} 12. Bxd6 {[%emt 0:05:11]} Qxd6 {[%emt 0:02:57]} 13. h3 {[%emt 0:06:30]} Nd5 {[%emt 0:05:07]} 14. Rfe1 {[%emt 0:00:51] The position is equal.} Nf4 {[%emt 0:03:52]} 15. Bf1 {[%emt 0:01:58]} Bd5 {[%emt 0:15:27]} 16. Rxe8+ {[%emt 0:05:20]} Rxe8 {[%emt 0:00:02]} 17. Re1 {[%emt 0:01:21]} Rd8 {[%emt 0:04:48][%cal Od5f3]} 18. Nh4 {[%emt 0:07:15]} Be6 {[%emt 0:02:32] Prevents Nf5.} 19. Nf3 {[%emt 0:10:05]} Bd5 {[%emt 0:02:02]} (19... Bxa2 $2 {perishes.} 20. b3 $18) 20. Nh4 {[%emt 0:00:32]} Be6 {[%emt 0:01:24] Repels Nf5} 21. Nf3 {[%emt 0:00:11] Not much happened in this game.   Weighted Error Value: White=0.06 (flawless) /Black=0.08 (flawless) .  Inaccurate:     	White=1     	Black=1      OK:         	White=7     	Black=2} 1/2-1/2

[Event "Swiss National League-A 2024"]
[Site "Luzern"]
[Date "2024.10.12"]
[Round "8.13"]
[White "Brunner, Lucas"]
[Black "Stijve, Theo"]
[Result "1-0"]
[ECO "D36"]
[WhiteElo "2413"]
[BlackElo "2390"]
[Annotator "TA"]
[PlyCount "82"]
[EventDate "2023.10.03"]
[EventType "team-tourn"]
[EventCountry "SUI"]
[SourceTitle "playchess.com"]
[Source "ChessBase"]
[SourceQuality "1"]
[TimeControl "40/8400+30:20/3000+30:900+30"]

{[%evp 19,82,33,27,35,57,21,27,9,17,14,10,0,0,0,0,6,13,0,15,12,13,4,22,0,5,-32,-30,-44,-32,-64,-71,-83,-85,-84,-65,-64,0,-5,90,89,83,91,89,54,221,192,202,204,215,213,350,350,1008,978,1102,1025,1105,989,29980,29979,29978,29979,29973,29963,29996]} 1. d4 {[%emt 0:40:06]} d5 {[%emt 0:40:13]} 2. c4 {[%emt 0:00:21]} e6 {[%emt 0:00:13]} 3. Nf3 {[%emt 0:01:00]} Nf6 {[%emt 0:00:11]} 4. Nc3 {[%emt 0:00:56]} Be7 {[%emt 0:01:13]} 5. Bg5 {[%emt 0:00:31]} O-O {[%emt 0:00:27]} 6. e3 {[%emt 0:00:15]} Nbd7 {[%emt 0:00:15]} 7. Qc2 {[%emt 0:00:21]} h6 {[%emt 0:00:11]} 8. Bh4 {[%emt 0:02:10]} a6 {[%emt 0:04:16]} 9. cxd5 {[%emt 0:05:24]} exd5 {[%emt 0:03:06]} 10. Bd3 {[%emt 0:00:35]} c6 {[%emt 0:02:41]} 11. O-O {[%emt 0:01:28]} Ne8 {[%emt 0:02:52]} 12. Bxe7 {[%emt 0:20:37]} Qxe7 {[%emt 0:00:43]} 13. h3 {[%emt 0:00:11] White has an edge.} Nd6 {[%emt 0:01:15]} 14. b4 {[%emt 0:01:25]} Nb6 {[%emt 0:17:27]} 15. Rfe1 {[%emt 0:16:39]} Qf6 {[%emt 0:04:14][%cal Oc8h3]} 16. Ne5 {[%emt 0:05:47]} Bf5 {[%emt 0:02:25]} 17. Bxf5 {[%emt 0:03:11]} Nxf5 {[%emt 0:03:27]} 18. a4 {[%emt 0:07:50]} Rfd8 {[%emt 0:06:22]} 19. b5 {[%emt 0:19:29]} cxb5 $1 {[%emt 0:12:59]} 20. axb5 {[%emt 0:00:10]} a5 {[%emt 0:00:11]} 21. Na4 {[%emt 0:05:02]} Rdc8 {[%emt 0:07:27]} 22. Qd2 {[%emt 0:04:35]} Nxa4 {[%emt 0:04:42]} 23. Rxa4 {[%emt 0:00:02]} b6 {[%emt 0:00:46]} 24. Qa2 {[%emt 0:05:55]} Qe6 {[%emt 0:03:54]} 25. Qb3 {[%emt 0:01:34]} Nd6 {[%emt 0:02:01]} 26. Raa1 {[%emt 0:01:08]} Ra7 {[%emt 0:04:41]} 27. Rac1 {[%emt 0:05:20]} Rac7 {[%emt 0:00:38]} (27... Rxc1 $1 $15 28. Rxc1 Nc4 (28... a4 29. Qb4 $11)) 28. Rc6 $11 {[%emt 0:00:19]} f6 {[%emt 0:14:23] [#]} (28... Rxc6 $1 $11 29. bxc6 Nc4 30. Nxc4 dxc4 31. Qxb6 a4) 29. Ng6 $1 $16 {[%emt 0:00:56] White is much more active.} Rxc6 {[%emt 0:00:31]} 30. bxc6 {[%emt 0:00:06] aiming for Nf4.} Nc4 {[%emt 0:03:02][%cal Of6f5]} (30... Rxc6 $2 31. Ne7+ Qxe7 32. Qxd5+ Kh7 33. Qxc6 $18) 31. e4 {[%emt 0:00:16] Qc3 is the strong threat.} Kh7 $2 {[%emt 0:06:19] A mistake that costs the game.} ({But not} 31... Rxc6 32. Qb1 Rc7 33. exd5 $16) (31... f5 $14 32. Nf4 Qxc6 33. Nxd5 Qb7) 32. Nf4 $1 $18 {[%emt 0:00:25][%csl LRd5,LRe6]} Qxc6 {[%emt 0:00:11]} 33. exd5 {[%emt 0:01:33]} Qd7 {[%emt 0:01:23]} 34. Qd3+ {[%emt 0:00:37]} Kg8 {[%emt 0:02:07]} (34... f5 {is a better defense.} 35. Re6 Nd6) 35. Ng6 {[%emt 0:00:35] [#] And now Ne7+ would win.} Nb2 $2 {[%emt 0:00:40]} (35... Kf7 36. Re7+ Qxe7 37. Nxe7 Kxe7 38. Qe2+ Kf8) 36. Qe2 {[%emt 0:00:51] Black must now prevent Ne7+.} Kh7 {[%emt 0:00:26]} 37. Ne7 {[%emt 0:00:39]} ({Weaker is} 37. Qxb2 Kxg6 38. Qb1+ Kf7 $11) 37... Re8 {[%emt 0:00:33]} 38. d6 {[%emt 0:00:03]} ({Stronger than} 38. Qxb2 Rxe7 39. Qb1+ Kh8 $11) 38... Qxd6 {[%emt 0:00:30]} 39. Qc2+ {[%emt 0:00:01] White mates.} f5 {[%emt 0:00:32]} 40. Qxf5+ {[%emt 0:00:13]} (40. Nxf5 $2 Rxe1#) 40... Kh8 {[%emt 0:00:30]} 41. Re6 {[%emt 0:06:26]} Qd8 {[%emt 0:08:18] Weighted Error Value: White=0.06 (flawless) /Black=0.51.  Loses game:     	---       	Black=1      Mistake:       	---       	Black=4      Inaccurate:     	White=3     	---        OK:         	White=10    	Black=8      Best:        	White=2     	Black=2      Strong:       	White=1     	Black=1} 1-0

[Event "Swiss National League-A 2024"]
[Site "Luzern"]
[Date "2024.10.12"]
[Round "8.14"]
[White "Loetscher, Roland"]
[Black "Fischer, Daniel"]
[Result "0-1"]
[ECO "A29"]
[WhiteElo "2379"]
[BlackElo "2362"]
[Annotator "TA"]
[PlyCount "100"]
[EventDate "2023.10.03"]
[EventType "team-tourn"]
[EventCountry "SUI"]
[SourceTitle "playchess.com"]
[Source "ChessBase"]
[SourceQuality "1"]
[TimeControl "40/8400+30:20/3000+30:900+30"]

{[%evp 17,100,8,22,0,0,0,15,0,18,7,6,-8,-4,0,0,-23,-14,-19,-16,-25,0,-41,-38,-27,-34,-37,-57,-44,-31,-28,-32,-90,-99,-95,-89,-108,-103,-106,-107,-115,-91,-86,-83,-87,-79,-83,-85,-89,-91,-99,-108,-91,-100,-102,-102,-166,-179,-188,-193,-245,-256,-262,-264,-250,-248,-255,-239,-241,-222,-262,-259,-253,-266,-461,-316,-375,-307,-639,-635,-647,-639,-697,-647,-600,-592]} 1. c4 {[%emt 0:40:03]} e5 {[%emt 0:40:09]} 2. g3 {[%emt 0:00:06]} Nf6 {[%emt 0:00:35]} 3. Bg2 {[%emt 0:00:08]} d5 {[%emt 0:01:11]} 4. cxd5 {[%emt 0:00:07]} Nxd5 {[%emt 0:00:05]} 5. Nf3 {[%emt 0:00:25]} Nc6 {[%emt 0:00:07]} 6. O-O {[%emt 0:00:15]} Nb6 {[%emt 0:00:12]} 7. Nc3 {[%emt 0:00:45]} Be7 {[%emt 0:00:27]} 8. d3 {[%emt 0:00:26]} O-O {[%emt 0:00:36]} 9. a3 {[%emt 0:00:30]} Re8 {[%emt 0:00:27]} 10. Rb1 {[%emt 0:00:12]} Bf8 {[%emt 0:01:33]} 11. Bg5 {[%emt 0:00:12]} Qd7 {[%emt 0:08:22]} 12. Rc1 {[%emt 0:06:33] The position is equal.} Nd4 {[%emt 0:05:17]} 13. Ne4 {[%emt 0:08:50]} c6 {[%emt 0:04:28]} 14. Nc5 {[%emt 0:03:33]} Bxc5 {[%emt 0:08:52]} 15. Rxc5 {[%emt 0:00:08]} Qd6 {[%emt 0:01:48]} 16. Rc1 {[%emt 0:05:51]} Bg4 {[%emt 0:01:07]} 17. Nxd4 {[%emt 0:06:28]} exd4 {[%emt 0:00:06]} 18. Re1 {[%emt 0:04:28]} Qg6 {[%emt 0:04:22]} 19. Qd2 {[%emt 0:18:44] [#]} Rxe2 $1 {[%emt 0:15:20]} 20. Rxe2 {[%emt 0:04:21]} Bxe2 {[%emt 0:00:07]} 21. Qxe2 {[%emt 0:00:55]} Qxg5 {[%emt 0:00:06]} 22. Re1 {[%emt 0:00:16][%cal Oe2e8] Intending Qe8+! and mate.} h6 {[%emt 0:03:44]} 23. h4 {[%emt 0:02:29]} Qf6 {[%emt 0:09:02]} 24. Qe7 {[%emt 0:05:28]} (24. b4 $15) 24... Qxe7 $17 {[%emt 0:00:54]} 25. Rxe7 {[%emt 0:01:08][%mdl 4096] Endgame. KRB-KRN} Rb8 {[%emt 0:00:10]} 26. b4 {[%emt 0:19:20]} Kf8 {[%emt 0:01:39]} 27. Rc7 {[%emt 0:00:28][%cal Ob4b5]} Ke8 {[%emt 0:07:43] ...Na8 is the strong threat.} 28. Bh3 {[%emt 0:00:19]} a6 {[%emt 0:13:05]} 29. Kg2 {[%emt 0:07:18]} Nd5 {[%emt 0:01:29]} 30. Rd7 {[%emt 0:00:33] [#]} Nc3 $1 {[%emt 0:02:48]} 31. Rxd4 {[%emt 0:09:43]} Nb5 {[%emt 0:01:14][%csl LRa3,LRd4]} 32. Rg4 {[%emt 0:01:07]} Kf8 {[%emt 0:01:35]} 33. a4 {[%emt 0:00:12]} Nc3 {[%emt 0:02:26]} 34. a5 {[%emt 0:00:49]} Rd8 {[%emt 0:00:53]} 35. Rc4 {[%emt 0:00:54]} Nb5 {[%emt 0:03:20] Black is more active.} (35... Rxd3 36. Bf5 (36. Bc8 Nb5 $17) 36... Rd5 37. Bc8 $18) 36. Bf5 {[%emt 0:03:45]} (36. Kf3 $17 {is a better defense.}) 36... g6 $19 {[%emt 0:01:49]} 37. Be4 {[%emt 0:00:56]} f5 {[%emt 0:01:13]} 38. Bxc6 {[%emt 0:00:29]} (38. Bf3 $142) 38... bxc6 {[%emt 0:00:23]} 39. Rxc6 {[%emt 0:00:04] [#] KRN-KR} Rd6 $1 {[%emt 0:00:13]} ({Not} 39... Rxd3 40. Rxa6 (40. Rxg6 $2 Rd6 $17) 40... Kf7 41. Rb6 $15) 40. Rc8+ {[%emt 0:00:46]} Kg7 {[%emt 0:01:22]} 41. Ra8 {[%emt 0:50:46]} Kf6 {[%emt 0:11:53][%cal Of6e5]} ({Weaker is} 41... Rxd3 42. Rxa6 Rd4 43. h5 gxh5 44. Rb6 Rxb4 45. Rb7+ Kg6 46. a6 $11) 42. Kf1 {[%emt 0:00:00]} Nd4 {[%emt 0:05:52]} (42... Rxd3 43. Rxa6+ Nd6 44. b5 $11) 43. Rf8+ {[%emt 0:00:00]} Ke7 {[%emt 0:01:28]} 44. Rb8 {[%emt 0:00:00]} h5 {[%emt 0:08:16]} 45. f4 $2 {[%emt 0:00:00]} (45. Ke1) 45... Nb3 {[%emt 0:02:34][%cal Ob3d4]} 46. b5 {[%emt 0:00:00]} Nxa5 {[%emt 0:01:37] And now ...axb5 would win.} 47. bxa6 {[%emt 0:00:00]} (47. Ra8 Kd7 (47... Rxd3 48. Ra7+ Kd6 49. Rxa6+ Kc5 50. Rxa5 $11) 48. Ke2) 47... Rxa6 {[%emt 0:00:08] Black is clearly winning.} 48. Kf2 {[%emt 0:00:00]} Re6 {[%emt 0:02:17]} 49. Rb4 {[%emt 0:00:00]} Nc6 {[%emt 0:00:37]} 50. Ra4 {[%emt 0:00:00]} Kd6 {[%emt 0:00:37] Weighted Error Value: White=0.29 (precise) /Black=0.09 (flawless) .  Mistake:       	White=5     	---        Inaccurate:     	White=1     	Black=1      OK:         	White=12    	Black=17     Best:        	White=3     	Black=2      Strong:       	---       	Black=2} 0-1

[Event "Swiss National League-A 2024"]
[Site "Luzern"]
[Date "2024.10.12"]
[Round "8.15"]
[White "Gruenenwald, Joerg"]
[Black "Gaehwiler, Gabriel"]
[Result "1/2-1/2"]
[ECO "E02"]
[WhiteElo "2288"]
[BlackElo "2396"]
[Annotator "TA"]
[PlyCount "30"]
[EventDate "2023.10.03"]
[EventType "team-tourn"]
[EventCountry "SUI"]
[SourceTitle "playchess.com"]
[Source "ChessBase"]
[SourceQuality "1"]
[TimeControl "40/8400+30:20/3000+30:900+30"]

{[%evp 18,30,0,0,33,35,34,42,37,0,43,0,27,0,93]} 1. d4 {[%emt 0:40:03]} Nf6 {[%emt 0:40:21]} 2. c4 {[%emt 0:00:12]} e6 {[%emt 0:00:30]} 3. Nf3 {[%emt 0:00:11]} d5 {[%emt 0:00:13]} 4. g3 {[%emt 0:00:15]} dxc4 {[%emt 0:03:19]} 5. Qa4+ {[%emt 0:01:31]} Nbd7 {[%emt 0:02:17]} 6. Bg2 {[%emt 0:03:49]} a6 {[%emt 0:02:59]} 7. Nc3 {[%emt 0:00:08]} Rb8 {[%emt 0:06:34]} 8. Qxc4 {[%emt 0:00:10]} b5 {[%emt 0:00:11]} 9. Qd3 {[%emt 0:00:19]} Bb7 {[%emt 0:02:26]} 10. O-O {[%emt 0:03:07]} b4 {[%emt 0:19:00]} 11. Na4 {[%emt 0:06:55]} Be4 {[%emt 0:02:35]} 12. Qc4 {[%emt 0:04:53]} (12. Qxa6 $2 {geht unter.} Ra8 13. Qb5 c6 $19) 12... Bd5 {[%emt 0:00:41]} 13. Qd3 {[%emt 0:00:16]} (13. Qxa6 $2 Ra8 14. Qb5 c6 $19) 13... Be4 {[%emt 0:00:04]} 14. Qc4 {[%emt 0:00:29]} (14. Qxa6 $2 {ist das falsche Schlagen.} Ra8 15. Qb5 c6 $19) 14... Bd5 $1 {[%emt 0:00:05]} 15. Qd3 {[%emt 0:00:12]} (15. Qxa6 $2 Ra8 16. Qb5 c6 $19) 15... Ba8 {[%emt 0:00:54] Gewichteter Fehlerwert: Weiß=0.19 (sehr präzise) /Schwarz=0.05 (makellos) .  Fehler:       	---       	Schwarz=1     Ungenau:       	Weiß=1     	---        OK:         	Weiß=1     	Schwarz=3     Stark:        	---       	Schwarz=1} (15... Be4 $11 {bleibt in der Remisbreite.} 16. Qd1 (16. Qxa6 $2 {zu gefräßig.} Ra8 $19) 16... Be7) 1/2-1/2

[Event "Swiss National League-A 2024"]
[Site "Luzern"]
[Date "2024.10.12"]
[Round "8.16"]
[White "Hakimifard, Ghazal"]
[Black "Vogt, Lothar"]
[Result "1/2-1/2"]
[ECO "B81"]
[WhiteElo "2183"]
[BlackElo "2257"]
[Annotator "RC"]
[PlyCount "65"]
[EventDate "2023.10.03"]
[EventType "team-tourn"]
[EventCountry "SUI"]
[SourceTitle "playchess.com"]
[Source "ChessBase"]
[SourceQuality "1"]
[TimeControl "40/8400+30:20/3000+30:900+30"]

1. e4 {[%emt 0:40:05]} c5 {[%emt 0:40:02]} 2. Nf3 {[%emt 0:00:11]} e6 {[%emt 0:00:16]} 3. d4 {[%emt 0:00:04]} cxd4 {[%emt 0:00:09]} 4. Nxd4 {[%emt 0:00:02]} Nf6 {[%emt 0:01:03]} 5. Nc3 {[%emt 0:00:19]} d6 {[%emt 0:00:02]} 6. g4 {[%emt 0:06:40]} h6 {[%emt 0:00:12]} 7. Bg2 {[%emt 0:03:11]} Nc6 {[%emt 0:01:03]} 8. Nb3 {[%emt 0:12:19]} Bd7 {[%emt 0:05:43]} 9. Qe2 {[%emt 0:05:22]} a6 {[%emt 0:02:14]} 10. f4 {[%emt 0:02:03]} Qc7 {[%emt 0:01:14]} 11. Be3 {[%emt 0:03:08]} b5 {[%emt 0:05:17]} 12. O-O-O {[%emt 0:10:58]} Rc8 {[%emt 0:03:48]} 13. Kb1 {[%emt 0:04:05]} Be7 {[%emt 0:02:39]} 14. h4 {[%emt 0:00:30]} h5 {[%emt 0:01:13]} 15. gxh5 {[%emt 0:06:44]} Nxh5 {[%emt 0:01:13]} 16. Qf2 {[%emt 0:02:58]} Rb8 {[%emt 0:13:24]} 17. Rhe1 {[%emt 0:02:47]} Bf6 {[%emt 0:07:34]} 18. e5 {[%emt 0:05:21]} dxe5 {[%emt 0:01:10]} 19. Nc5 {[%emt 0:01:07]} Bc8 {[%emt 0:04:42]} 20. fxe5 {[%emt 0:10:46]} Nxe5 {[%emt 0:03:37]} 21. N3e4 {[%emt 0:05:19]} Ng4 {[%emt 0:08:53]} 22. Nxf6+ {[%emt 0:01:47]} gxf6 {[%emt 0:15:15]} 23. Qd2 {[%emt 0:00:36]} Nxe3 {[%emt 0:00:50]} 24. Rxe3 {[%emt 0:00:45]} Ke7 {[%emt 0:07:21]} 25. Qb4 {[%emt 0:07:19]} a5 {[%emt 0:02:46]} 26. Nxe6+ {[%emt 0:01:01]} axb4 {[%emt 0:00:08]} 27. Nxc7+ {[%emt 0:00:02]} Be6 {[%emt 0:00:30]} 28. Nd5+ {[%emt 0:00:52]} Kf8 {[%emt 0:00:28]} 29. Nxb4 {[%emt 0:04:38]} Nf4 {[%emt 0:00:33]} 30. Bf3 {[%emt 0:00:23]} Rxh4 {[%emt 0:00:27]} 31. Na6 {[%emt 0:01:38]} Rb6 {[%emt 0:01:30]} 32. Nc7 {[%emt 0:02:26]} Rh3 {[%emt 0:06:27]} 33. Ra3 {[%emt 0:03:05]} 1/2-1/2

[Event "Swiss National League-A 2024"]
[Site "Luzern"]
[Date "2024.10.12"]
[Round "8.17"]
[White "Aranovitch, Emiliano"]
[Black "Stojanovic, Mihajlo"]
[Result "1/2-1/2"]
[ECO "C10"]
[WhiteElo "2318"]
[BlackElo "2424"]
[Annotator "TA"]
[PlyCount "51"]
[EventDate "2023.10.03"]
[EventType "team-tourn"]
[EventCountry "SUI"]
[SourceTitle "playchess.com"]
[Source "ChessBase"]
[SourceQuality "1"]
[TimeControl "40/8400+30:20/3000+30:900+30"]

{[%evp 14,51,56,0,0,0,25,37,97,96,105,43,46,49,45,44,50,34,60,15,22,18,28,20,29,19,23,17,21,12,13,3,7,0,0,0,30,0,17,0]} 1. e4 {[%emt 0:41:59]} e6 {[%emt 0:40:35]} 2. d4 {[%emt 0:00:11]} d5 {[%emt 0:00:03]} 3. Nc3 {[%emt 0:00:07]} Nf6 {[%emt 0:00:08]} 4. Bg5 {[%emt 0:00:42]} dxe4 {[%emt 0:00:09]} 5. Nxe4 {[%emt 0:00:14]} Nbd7 {[%emt 0:00:09]} 6. Nf3 {[%emt 0:00:41]} h6 {[%emt 0:00:09]} 7. Nxf6+ {[%emt 0:00:58]} Nxf6 {[%emt 0:00:04]} 8. Be3 {[%emt 0:01:52]} (8. Bh4 $14) 8... Bd6 $11 {[%emt 0:06:34] C10: Frans met 3 Pc3: Ongebruikelijke Zwart 3e zetten en 3...dxe4.} 9. Bd3 {[%emt 0:03:15] OK} Nd5 {[%emt 0:00:15]} 10. Bd2 {[%emt 0:00:24] OK} {Zwart zou moeten spelen} Nf4 {[%emt 0:07:38] Fout (0.6)} (10... b6 $14) 11. Bxf4 $16 {[%emt 0:01:45] Beste (Gemakkelijk)} Bxf4 {[%emt 0:00:08]} {Optimal for White is to attempt...} 12. g3 {[%emt 0:00:31] Fout (0.6)} (12. Qe2 $16) 12... Bd6 $14 {[%emt 0:00:10] OK} 13. Qe2 {[%emt 0:00:14]} Qe7 {[%emt 0:04:01]} 14. O-O-O {[%emt 0:45:39]} Bd7 {[%emt 0:00:33] OK} 15. Ne5 $146 {[%emt 0:04:37]} ({Predecessor:} 15. Be4 O-O-O 16. Rhe1 Kb8 17. c3 Qe8 18. Bc2 Ba4 19. b3 Bc6 20. Ne5 Bxe5 21. Qxe5 {1-0 Maze,S (2536)-Rapport,J (2335) Gibraltar Masters 12th 2014 (5)}) 15... O-O-O {[%emt 0:00:16] Onnauwkeurig} 16. Nxd7 {[%emt 0:05:07] Onnauwkeurig} Rxd7 {[%emt 0:00:44] Zwart is zwak op de lichte velden} 17. c3 {[%emt 0:01:24] OK} Kb8 {[%emt 0:00:49]} 18. h4 {[%emt 0:00:49]} h5 {[%emt 0:04:43]} 19. Kb1 {[%emt 0:03:00]} g6 {[%emt 0:01:21]} 20. Bc2 {[%emt 0:06:20] OK} Rhd8 {[%emt 0:00:39]} 21. Rhe1 {[%emt 0:07:48]} c6 {[%emt 0:00:27]} 22. f4 {[%emt 0:01:42]} Bc7 {[%emt 0:04:44]} 23. Bb3 {[%emt 0:03:55]} Qf6 {[%emt 0:01:19]} 24. Bc2 {[%emt 0:00:09]} Qe7 {[%emt 0:00:06] Onnauwkeurig} 25. Bb3 {[%emt 0:00:07] Onnauwkeurig} Qf6 {[%emt 0:00:03]} 26. Bc2 {[%emt 0:00:09] Blunder waarde: Wit=0.15 (erg precies) /Zwart=0.12 (erg precies) .  Fout:        	Wit=1      	Zwart=1      Onnauwkeurig:    	Wit=2      	Zwart=2      OK:         	Wit=4      	Zwart=2      Beste:        	Wit=1      	---} 1/2-1/2